Workbook

Sheet Feuil1
C2: Loi à simuler : | J2: Comparaison :
B3: Loi = | C3: Normale | I3: Théorique | J3: Empirique | K3: Erreur (%)
B4: Moyenne = | C4: 100 | H4: Moyenne = | I4: =Moyenne -> 100 | J4: =AVERAGE(Mat) -> 99.6105627 | K4: =IF(Moyenne=0,"",(J4-Moyenne)/Moyenne) -> -0.003894372957
B5: =IF(Loi="Normale","Ecart-type =","Variation =") -> Ecart-type = | C5: 1 | H5: Ecart-type = | I5: =IF(Loi="Normale",stdev,(stdev)/SQRT(3)) -> 1 | J5: =STDEV(Mat) -> 0.908794984 | K5: =(J5-I5)/I5 -> -0.09120501598
B6: Nb d'itérations = | C6: 10 | D6: (max 1000000)
B8: Sélectionner la loi (normale ou uniforme), ses paramètres et le nombre de simulations. Taper F9 pour faire une nouvelle simulation.
C12: Résultats expérimentaux :
B13: Min = | C13: =MIN(Mat) -> 97.98702242
B14: Max = | C14: =MAX(Mat) -> 100.9262475
B15: C = | C15: =MAX(INT(8*stdev+8),INT(SQRT(N))) -> 16 | D15: =IF(C15=1,"classe","classes") -> classes
B16: It = | C16: =MAX(8*stdev,(Max-Min))/NbClasses -> 0.5 | D16: (Largeur d'intervalle)
B17: Moyenne = | C17: =J4 -> 99.6105627
B18: Ecart-type = | C18: =J5 -> 0.908794984
C23: www.lametrologie.com
B30: Tirage | C30: Classes | D30: Fréquences | E30: Loi théorique
B31: =NORMINV(RAND(),Moyenne,stdev) -> 100.9262475 | C31: =Moyenne-4*stdev+0*It -> 96 | D31: =FREQUENCY(B31:B40,C31:C46)/N -> 0 | E31: =NORMDIST(C31,Moyenne,stdev,FALSE)*It -> 6.691511288e-05
B32: =NORMINV(RAND(),Moyenne,stdev) -> 99.47829725 | C32: =Moyenne-4*stdev+1*It -> 96.5 | D32: 0 | E32: =NORMDIST(C32,Moyenne,stdev,FALSE)*It -> 0.0004363413475
B33: =NORMINV(RAND(),Moyenne,stdev) -> 99.98979593 | C33: =Moyenne-4*stdev+2*It -> 97 | D33: 0 | E33: =NORMDIST(C33,Moyenne,stdev,FALSE)*It -> 0.002215924206
B34: =NORMINV(RAND(),Moyenne,stdev) -> 99.27319049 | C34: =Moyenne-4*stdev+3*It -> 97.5 | D34: 0 | E34: =NORMDIST(C34,Moyenne,stdev,FALSE)*It -> 0.008764150247
B35: =NORMINV(RAND(),Moyenne,stdev) -> 97.98702242 | C35: =Moyenne-4*stdev+4*It -> 98 | D35: 0.1 | E35: =NORMDIST(C35,Moyenne,stdev,FALSE)*It -> 0.02699548326
B36: =NORMINV(RAND(),Moyenne,stdev) -> 100.0006901 | C36: =Moyenne-4*stdev+5*It -> 98.5 | D36: 0 | E36: =NORMDIST(C36,Moyenne,stdev,FALSE)*It -> 0.06475879783
B37: =NORMINV(RAND(),Moyenne,stdev) -> 99.6191943 | C37: =Moyenne-4*stdev+6*It -> 99 | D37: 0.1 | E37: =NORMDIST(C37,Moyenne,stdev,FALSE)*It -> 0.1209853623
B38: =NORMINV(RAND(),Moyenne,stdev) -> 98.5382037 | C38: =Moyenne-4*stdev+7*It -> 99.5 | D38: 0.3 | E38: =NORMDIST(C38,Moyenne,stdev,FALSE)*It -> 0.1760326634
B39: =NORMINV(RAND(),Moyenne,stdev) -> 99.47030348 | C39: =Moyenne-4*stdev+8*It -> 100 | D39: 0.2 | E39: =NORMDIST(C39,Moyenne,stdev,FALSE)*It -> 0.1994711402
B40: =NORMINV(RAND(),Moyenne,stdev) -> 100.8226819 | C40: =Moyenne-4*stdev+9*It -> 100.5 | D40: 0.1 | E40: =NORMDIST(C40,Moyenne,stdev,FALSE)*It -> 0.1760326634
C41: =Moyenne-4*stdev+10*It -> 101 | D41: 0.2 | E41: =NORMDIST(C41,Moyenne,stdev,FALSE)*It -> 0.1209853623
C42: =Moyenne-4*stdev+11*It -> 101.5 | D42: 0 | E42: =NORMDIST(C42,Moyenne,stdev,FALSE)*It -> 0.06475879783
C43: =Moyenne-4*stdev+12*It -> 102 | D43: 0 | E43: =NORMDIST(C43,Moyenne,stdev,FALSE)*It -> 0.02699548326
C44: =Moyenne-4*stdev+13*It -> 102.5 | D44: 0 | E44: =NORMDIST(C44,Moyenne,stdev,FALSE)*It -> 0.008764150247
C45: =Moyenne-4*stdev+14*It -> 103 | D45: 0 | E45: =NORMDIST(C45,Moyenne,stdev,FALSE)*It -> 0.002215924206
C46: =Moyenne-4*stdev+15*It -> 103.5 | D46: 0 | E46: =NORMDIST(C46,Moyenne,stdev,FALSE)*It -> 0.0004363413475
C47: =Moyenne-4*stdev+16*It -> 104 | D47: 0 | E47: =NORMDIST(C47,Moyenne,stdev,FALSE)*It -> 6.691511288e-05

Sheet Feuil2
A1: Version | B1: Commentaire
A2: 1.2 | B2: Le programme génère une loi rectangle ou normale à chaque rafraîchissement. Un tableau compare les moyennes et écarts-types théoriques et expérimentaux. Problème : les courbes expérimentale et théoriques ne sont pas sur la même échelle. Prochaine version : une seule échelle d'abscisse.

Sheet Feuil3
